{"text_format":"2","workbook":"xlsx","n_sheets":8,"sheets":["Общие сведения","Аффилированные организации","Показатели","Аутсорсинг учетных функций","Технический аудит и консалтинг","МСФО","ESG","Бланк подтверждения"],"not_rendered":{"charts":0,"images":1,"macros":0,"external_links":0,"defined_names":0,"comments":3,"pivot_tables":0},"unopened":[],"bounds":{"document_bytes":16777216,"sheet_cells":100000,"run_cost":"one","rows_first":2000,"rows_last":500,"rows_between":2000,"halvings":0,"cell_chars":16384,"cell_head_chars":4096},"cells_cut":0,"cells_raw":0,"read":"whole","date_system":"1900"}

{"sheet":"Общие сведения","index":0,"n_rows":37,"n_cols":4,"rows_kept":37,"cut":false,"hidden":false,"merged":[[19,0,19,1],[1,0,1,3],[20,0,20,1],[12,0,13,1],[0,0,0,3],[14,0,14,3],[3,2,11,3],[2,0,2,3],[18,0,18,3],[15,0,16,1],[17,0,17,1],[36,0,36,3],[21,0,21,1],[22,0,22,1],[28,0,28,1],[29,0,29,1],[29,2,29,3],[28,2,28,3],[27,0,27,3],[23,0,24,1],[32,0,35,1],[30,0,31,1],[25,0,26,0]]}
["Анкета RAEX для участия в ежегодных рэнкингах \n\"Российский консалтинг\", \"Аутсорсинг учётных функций\", \n\"Технический аудит и консалтинг\"."]
["Пояснения к пунктам с примечанием (*) смотрите в инструкции к анкете (файл instruct.doc)."]
[]
["Наименование головной организации\n(в кавычках c указанием организационно-правовой формы)."]
["ИНН организации."]
["Фактический адрес."]
["Юридический адрес."]
["Адрес (для курьерской службы)."]
["Номер телефона с указанием городского кода."]
["Адрес электронной почты."]
["Адрес интернет-сайта."]
["Является ли Ваша организация членом профессиональных объединений? Если да, то каких?"]
["1. Число аффилированных / зависимых лиц, с учётом головной организации (или управляющей компании), осуществляющих консалтинговую деятельность. В группе могут учитываться аудиторские организации, если они предоставляют консалтинговые услуги.",null,"На 31.12.2024","На 31.12.2025"]
[]
[]
["2.* Численность (всех) штатных сотрудников, согласно титульному листу формы по расчётам страховых взносов (головная компания и аффилированные лица).",null,"За 2024 год","За 2025 год"]
[]
["2.1. В том числе специалисты (консультанты), участвующие в консалтинговых проектах и обеспечивающие выручку от консалтинговых услуг (специалисты — это сотрудники, выполняющие работу для заказчиков; без учёта сотрудников сервисных служб компании — бухгалтерии, маркетинга, рекламы, ИТ и т.д.)."]
[]
["3.* Суммарная выручка головной организации и аффилированных лиц от осуществления всех видов деятельности (указывается без учёта НДС): согласно форме № 2 бухгалтерской отчётности или налоговой декларации, или форме № 2-аудит (у аудиторских компаний). Выручка за 2025 год отразится автоматически из листа \"Показатели\".",null,"За 2024 год","За 2025 год"]
["Цифрами (руб.)",null,null,{"$f":"Показатели!AF29","v":0}]
["3.1.* Суммарная выручка головной организации и аффилированных лиц от предоставления консалтинговых услуг (исключая выручку от аудита и иной деятельности, не относящейся к консалтингу). Показатель приводится без НДС и внутригруппового дохода, приводимого в пункте 3.2. Выручка за 2025 год отразится автоматически из листа \"Показатели\".",null,"За 2024 год","За 2025 год"]
["Цифрами (руб.)",null,null,{"$f":"Показатели!AF27","v":0}]
["3.2.* Внутригрупповой доход (при участии группы компаний): оборот от операций между компаниями, входящими в группу. Этот показатель не может учитываться при расчёте выручки от консалтинговых услуг, указанного в пункте 3.2.",null,"За 2024 год","За 2025 год"]
[]
["Суммарная выручка от консалтинга за первые три месяца 2026, 2025 и 2024 гг. Информация не персонифицируется и запрашивается только для исследования динамики рынка.","3 мес. 2024 года","3 мес. 2025 года","3 мес. 2026 года"]
[]
[]
["Укажите, пожалуйста, клиента, при оказании консалтинговых услуг которому доля полученной выручки превышает 25% общего дохода компании (или группы)."]
["Назовите из вашей практики организации, которые за исследуемый период в мероприятиях, связанных с отбором или аккредитацией компаний для проведения работ по консалтингу, или аутсорсингу, или оценке, или техническому аудиту и консалтингу, одним из требований к подрядчикам указывали участие в рэнкингах RAEX (ООО \"РАЭКС-Аналитика\")."]
["Должность и ФИО руководителя организации.",null,"Должность","ФИО"]
[]
["Должность, ФИО и контактная информация сотрудника для взаимодействия в рамках рэнкингов (на имя этого сотрудника будут отправлены документы по итогам проекта).",null,"Должность","ФИО"]
[]
[null,null,"E-mail","Номер телефона"]
[]
["Пожалуйста, перейдите к заполнению следующего листа"]

{"sheet":"Аффилированные организации","index":1,"n_rows":4,"n_cols":7,"rows_kept":4,"cut":false,"hidden":false,"merged":[[0,0,0,6],[1,0,1,6],[2,0,2,6]]}
["Этот лист является обязательным для заполнения.\nПояснения смотрите в инструкции к анкете в файле instruct.doc."]
["Укажите зависимые и аффилированные компании входящие в вашу группу, осуществляющие консалтинговую деятельность. Приведите организации по одной в каждой строке, указывая название организации, вид деятельности, наименование СРО, ИНН, город местонахождения и признак аффилированности."]
[" После того как эта таблица будет заполнена, пожалуйста, перейдите к заполнению следующего листа"]
["№","Наименование организации","Вид деятельности","Название СРО","ИНН","Город","Признак аффилированности\n(см. файл instuct.doc или методику проекта)"]

{"sheet":"Показатели","index":2,"n_rows":29,"n_cols":32,"rows_kept":29,"cut":false,"hidden":false,"merged":[[18,30,18,31],[0,0,0,31],[1,0,1,31],[2,0,2,31],[3,0,3,31],[6,30,6,31],[8,30,8,31],[10,30,10,31],[12,30,12,31],[14,30,14,31],[16,30,16,31],[20,30,20,31],[22,30,22,31],[24,30,24,31],[27,1,27,29],[28,1,28,29]]}
["Этот лист является обязательным для заполнения. Пояснения смотрите в инструкции к анкете в файле instruct.doc"]
["Для отражения опыта работы компании или группы, пожалуйста, укажите в соответствующих ячейках таблицы объём выручки от консалтинговых услуг, оказанных предприятиям различных отраслей экономики в 2025 году. Выручка приводится в рублях без округления и без учёта НДС. Обратите внимание, что результат в строке \"Итого по всем видам деятельности\" (ячейка AE29) равен 100% и соответствует данным отчётности. Если структурирование выручки по отраслям затруднительно, то допускается указание суммарной выручки по направлениям услуг в графе \"Другие отрасли и сферы экономики\"."]
["Приведите, пожалуйста, в соответствующих ячейках таблицы примеры (названия) крупнейших компаний-клиентов (1-3), которым в 2025 году оказывалась рассматриваемая услуга."]
[" После того как эта таблица будет заполнена, пожалуйста, перейдите к заполнению следующего листа"]
[" Виды услуг / отрасли экономики","Агропромышленный\nкомплекс","Легкая промышленность","Лесная,\nдеревообрабатывающая и\n целлюлозно-бумажная\n промышленность","Машиностроение","Металлургический комплекс\n(в т.ч. угольная\n промышленность)","Нефтяная и нефтегазовая\nпромышленность","Пищевая промышленность\n(в т.ч. общественное питание)","Промышленность\nдрагоценных металлов и алмазов","Промышленность\nстроительных материалов","Фармацевтика","Химический комплекс\n(в т.ч. нефтехимическая\nпромышленность)","Электроэнергетика","Строительство и девелопмент","Торговля","Транспорт","Связь и телекоммуникации","Банки","Страховые компании","Биржи и Инвестиционные институты","Лизинговые компании","НПФ","Государственное управление","ЖКХ","Здравоохранение","ИТ","Образование","СМИ","Полиграфическая\nпромышленность","Другие отрасли и сферы экономики","Доля в суммарной выручке (%)","Всего по видам услуг (руб.)"]
["Консалтинг в области стратегического планирования и организационного развития (выручка, руб.)",{"$nulls":29},{"$f":"IF(AF29=0,\"\",AF6/AF29)","v":""},{"$f":"SUM(B6:AD6)","v":0}]
["примеры клиентов"]
["Консалтинг в области финансового управления (аутсорсинг функций учёта и бухгалтерские услуги, бюджетирование, планирование издержек, контроль рисков, разработка бизнес-планов и т.д.) (выручка, руб.)",{"$nulls":29},{"$f":"IF(AF29=0,\"\",AF8/AF29)","v":""},{"$f":"SUM(B8:AD8)","v":0}]
["примеры клиентов"]
["Налоговый консалтинг (консультирование по вопросам налогообложения, ведение налогового учета, налоговая экспертиза и т.д.) (выручка, руб.)",{"$nulls":29},{"$f":"IF(AF29=0,\"\",AF10/AF29)","v":""},{"$f":"SUM(B10:AD10)","v":0}]
["примеры клиентов"]
["Консалтинг в области управления персоналом (без учёта подбора персонала) (выручка, руб.)",{"$nulls":29},{"$f":"IF(AF29=0,\"\",AF12/AF29)","v":""},{"$f":"SUM(B12:AD12)","v":0}]
["примеры клиентов"]
["Консалтинг в области организации производства товаров и услуг (технологический и ценовой аудит, строительный консалтинг и экспертиза, разработка и внедрение технологий; НИОКР; консультирование по вопросам управления производством; логистика; контроль качества) (выручка, руб.)",{"$nulls":29},{"$f":"IF(AF29=0,\"\",AF14/AF29)","v":""},{"$f":"SUM(B14:AD14)","v":0}]
["примеры клиентов"]
["Консалтинг в области маркетинга и отношений с общественностью (выручка, руб.)",{"$nulls":29},{"$f":"IF(AF29=0,\"\",AF16/AF29)","v":""},{"$f":"SUM(B16:AD16)","v":0}]
["примеры клиентов"]
["ИТ-консалтинг: управленческое консультирование (выручка, руб.)",{"$nulls":29},{"$f":"IF(AF29=0,\"\",AF18/AF29)","v":""},{"$f":"SUM(B18:AD18)","v":0}]
["примеры клиентов"]
["ИТ-консалтинг: разработка и системная интеграция (без учёта стоимости оборудования и лицензий ПО, технических и пуско-наладочных работ, сервисного обслуживания) (выручка, руб.)",{"$nulls":29},{"$f":"IF(AF29=0,\"\",AF20/AF29)","v":""},{"$f":"SUM(B20:AD20)","v":0}]
["примеры клиентов"]
["Юридический консалтинг (выручка, руб.)",{"$nulls":29},{"$f":"IF(AF29=0,\"\",AF22/AF29)","v":""},{"$f":"SUM(B22:AD22)","v":0}]
["примеры клиентов"]
["Оценочная деятельность (выручка, руб.)",{"$nulls":29},{"$f":"IF(AF29=0,\"\",AF24/AF29)","v":""},{"$f":"SUM(B24:AD24)","v":0}]
["примеры клиентов"]
["Прочие консалтинговые услуги (выручка, руб.) (перечислите в этой ячейке какие именно услуги были оказаны)",{"$nulls":29},{"$f":"IF(AF29=0,\"\",AF26/AF29)","v":""},{"$f":"SUM(B26:AD26)","v":0}]
["ИТОГО (общая выручка от КОНСАЛТИНГА):",{"$f":"SUM(B6:B26)","v":0},0,0,0,0,0,0,0,0,0,0,0,0,0,0,0,0,0,0,0,0,0,0,0,0,0,0,0,0,0,0]
["Другие виды деятельности (выручка, руб.)",{"$nulls":29},{"$f":"IF(AF29=0,\"\",AF28/AF29)","v":""},{"$f":"SUM(B28:AD28)","v":0}]
["Итого по всем видам деятельности:",{"$nulls":29},{"$f":"SUM(AE27,AE28)","v":0},{"$f":"SUM(AF27,AF28)","v":0}]

{"sheet":"Аутсорсинг учетных функций","index":3,"n_rows":34,"n_cols":23,"rows_kept":34,"cut":false,"hidden":false,"merged":[[4,0,5,17],[0,0,0,22],[1,0,2,17],[3,0,3,17],[11,10,12,10],[6,0,7,17],[10,0,10,22],[11,0,12,0],[11,1,12,1],[11,2,12,2],[11,3,12,3],[11,4,12,4],[11,5,12,5],[11,6,12,6],[11,7,12,7],[11,8,12,8],[11,9,12,9],[11,22,12,22],[11,11,12,11],[11,20,12,20],[11,21,12,21],[11,12,12,12],[11,13,12,13],[11,14,12,14],[11,15,12,15],[11,16,12,16],[1,20,9,22],[8,0,9,17],[33,0,33,22],[14,18,14,22],[16,18,16,22],[20,18,20,22],[22,18,22,22],[29,0,29,22],[32,20,32,22],[31,18,31,22],[28,18,28,22],[26,18,26,22],[24,18,24,22],[11,17,12,17],[11,18,12,18],[11,19,12,19]]}
["Этот лист является обязательным для компаний, имеющих опыт предоставления услуг в области АУТСОРСИНГА УЧЁТНЫХ ФУНКЦИЙ и участвующих в рэнкингах по данному направлению. Пояснения смотрите в инструкции - instruct.doc и в методике - metod (outsource).doc."]
["1. Число компаний в группе, осуществляющих деятельность в области аутсорсинга учётных функций (с учётом головной компании).",{"$nulls":17},"На 31.12.2024","На 31.12.2025"]
[]
["1.1. Наименование компаний, предоставляющих услуги в области аутсорсинга учётных функций (с указанием организационно-правовой формы)."]
["2. Средняя численность специалистов, задействованных в предоставлении услуг в области аутсорсинга учётных функций (суммарные данные головной компании и аффилированных лиц, осуществляющих деятельность в области аутсорсинга учёта). Специалисты — это сотрудники, выполняющие работу для заказчиков (бухгалтеры, консультанты). Без учёта сотрудников сервисных служб компании (продажи, маркетинг, ИТ, бухгалтерия и т.д.).",{"$nulls":17},"За 2024 год","За 2025 год"]
[]
["3. Выручка (без учёта НДС) головной компании и аффилированных лиц, полученная от предоставления услуг аутсорсинга функций учёта.",{"$nulls":17},"За 2024 год","За 2025 год"]
[{"$nulls":19},{"$f":"T33","v":0}]
["3.1. Суммарная выручка за первые три месяца 2026 и 2025 гг. Информация запрашивается только для исследования динамики рынка.",{"$nulls":17},"3 мес. 2025 года","3 мес. 2026 года"]
[]
["4. Для более полного представления опыта работы, укажите в таблице выручку (без НДС) от услуг аутсорсинга учётных функций, оказанных предприятиям различных отраслей экономики в 2025 году. Приведите примеры крупнейших клиентов (2-3 клиента), которым Ваша компания / группа предоставляла услуги аутсорсинга учётных функций за исследуемый период. Если структурирование выручки по отраслям экономики затруднительно, то допускается указание суммарной выручки по направлениям аутсорсинга в графе \"Другие отрасли и сферы экономики\"."]
["Виды услуг","Машиностроение и металлообработка","Металлургический\nкомплекс (в т.ч. угольная промышленность)","Нефтяная и\nнефтегазовая\nпромышленность","Пищевая\nпромышленность","Промышленность\nстроительных\nматериалов","Химическая\n промышленность","Электроэнергетика","Строительство","Торговля","Транспорт","Связь","Финансовые институты","Государственное\nуправление","ЖКХ","Здравоохранение","Образование","Другие отрасли\nи сферы экономики","Доля в общей выручке от аутсорсинга учётных функций (%)","Всего выручка (руб.)","Всего клиентов","Примерная доля выручки от оказания услуг иностранным компаниям, работающим на территории РФ, в общей выручке (%)","Количество иностранных клиентов"]
[]
["Бухгалтерский и налоговый учёт",{"$nulls":17},{"$f":"IF(T33=0,\"\",T14/T33)","v":""},{"$f":"B14+C14+D14+E14+F14+G14+H14+I14+J14+K14+L14+M14+N14+O14+P14+Q14+R14","v":0}]
["примеры клиентов"]
["Расчёт заработной платы",{"$nulls":17},{"$f":"IF(T33=0,\"\",T16/T33)","v":""},{"$f":"B16+C16+D16+E16+F16+G16+H16+I16+J16+K16+L16+M16+N16+O16+P16+Q16+R16","v":0}]
["примеры клиентов"]
["Подготовка бухгалтерской и налоговой отчётности по РСБУ",{"$nulls":17},{"$f":"IF(T33=0,\"\",T18/T33)","v":""},{"$f":"B18+C18+D18+E18+F18+G18+H18+I18+J18+K18+L18+M18+N18+O18+P18+Q18+R18","v":0}]
["примеры клиентов"]
["Подготовка финансовой отчётности по МСФО",{"$nulls":17},{"$f":"IF(T33=0,\"\",T20/T33)","v":""},{"$f":"B20+C20+D20+E20+F20+G20+H20+I20+J20+K20+L20+M20+N20+O20+P20+Q20+R20","v":0}]
["примеры клиентов"]
["Кадровый учёт и делопроизводство",{"$nulls":17},{"$f":"IF(T33=0,\"\",T22/T33)","v":""},{"$f":"B22+C22+D22+E22+F22+G22+H22+I22+J22+K22+L22+M22+N22+O22+P22+Q22+R22","v":0}]
["примеры клиентов"]
["Юридическое сопровождение бизнеса",{"$nulls":17},{"$f":"IF(T33=0,\"\",T24/T33)","v":""},{"$f":"B24+C24+D24+E24+F24+G24+H24+I24+J24+K24+L24+M24+N24+O24+P24+Q24+R24","v":0}]
["примеры клиентов"]
["ИТ-аутсорсинг (в рамках договоров аутсорсинга учётных функций клиента)",{"$nulls":17},{"$f":"IF(T33=0,\"\",T26/T33)","v":""},{"$f":"B26+C26+D26+E26+F26+G26+H26+I26+J26+K26+L26+M26+N26+O26+P26+Q26+R26","v":0}]
["примеры клиентов"]
["Подбор персонала (в рамках договоров аутсорсинга кадрового учёта)",{"$nulls":17},{"$f":"IF(T33=0,\"\",T28/T33)","v":""},{"$f":"B28+C28+D28+E28+F28+G28+H28+I28+J28+K28+L28+M28+N28+O28+P28+Q28+R28","v":0}]
["примеры клиентов"]
["Другие виды услуг в рамках регулярного обслуживания по договорам аутсорсинга учётных функций (перечислите, пожалуйста, обязательно их наименования ниже, в одной ячейке)."]
["Другие виды услуг в рамках регулярного обслуживания по договорам аутсорсинга учётных функций",{"$nulls":17},{"$f":"IF(T33=0,\"\",T31/T33)","v":""},{"$f":"B31+C31+D31+E31+F31+G31+H31+I31+J31+K31+L31+M31+N31+O31+P31+Q31+R31","v":0}]
["примеры клиентов"]
["Итого, по аутсорсингу учётных функций:",{"$f":"SUM(B14:B31)","v":0},{"$f":"SUM(C14:C31)","v":0},0,0,0,0,0,0,0,0,0,0,0,0,0,0,0,{"$f":"SUM(S14:S31)","v":0},{"$f":"SUM(T14:T31)","v":0}]
["После того как эта таблица будет заполнена, пожалуйста, перейдите к заполнению следующего листа"]

{"sheet":"Технический аудит и консалтинг","index":4,"n_rows":29,"n_cols":25,"rows_kept":29,"cut":false,"hidden":false,"merged":[[6,0,7,22],[8,0,9,22],[0,0,0,24],[1,0,2,22],[3,0,3,22],[4,0,5,22],[28,0,28,24],[26,1,26,21],[26,24,27,24],[27,1,27,21],[10,0,10,24],[13,22,13,24],[17,22,17,24],[19,22,19,24],[21,22,21,24],[23,22,23,24]]}
["Этот лист является обязательным для компаний, имеющих опыт предоставления услуг в области ТЕХНИЧЕСКОГО АУДИТА И КОНСАЛТИНГА.\nПояснения смотрите в инструкции (instruct.doc) и в методике (metod.doc)."]
["1. Число компаний в группе, осуществляющих деятельность в области технического аудита и консалтинга (с учётом головной компании).",{"$nulls":22},"На 31.12.2024","На 31.12.2025"]
[]
["1.1. Наименование компаний, осуществляющих деятельность в области технического аудита и консалтинга (с сокращённым указанием организационно-правовой формы)."]
["2. Средняя численность специалистов (суммарные данные головной организации и аффилированных лиц), задействованных в предоставлении услуг в области технического аудита и консалтинга. Без учёта сотрудников сервисных служб компании (продажи, маркетинг, ИТ, бухгалтерия и т.д.).",{"$nulls":22},"За 2024 год","За 2025 год"]
[]
["3. Выручка (без учёта НДС) головной компании и аффилированных лиц, полученная от предоставления услуг технического аудита и консалтинга.",{"$nulls":22},"За 2024 год","За 2025 год"]
[{"$nulls":24},{"$f":"X26","v":0}]
["3.1. Суммарная выручка за первые три месяца 2026 и 2025 гг. Информация запрашивается только для исследования динамики рынка.",{"$nulls":22},"3 мес. 2025 года","3 мес. 2026 года"]
[]
["4. Для более полного представления опыта работы, укажите в таблице выручку (без НДС), заработанную в результате предоставления услуг технического аудита и консалтинга предприятиям различных отраслей экономики в 2025 году. Приведите примеры крупнейших клиентов (2-3 клиента), которым Ваша компания / группа предоставляла услуги технического аудита и консалтинга за исследуемый период. Если структурирование выручки по отраслям экономики затруднительно, то допускается указание суммарной выручки по направлениям технического аудита и консалтинга в колонке \"Другие отрасли и сферы экономики\"."]
[" Виды услуг / отрасли экономики","АПК","Легкая промышленность","Лесная, деревообрабатывающая и\n целлюлозно-бумажная\n промышленность","Машиностроение","Металлургический комплекс\n(в т.ч. угольная\n промышленность)","Нефтяная и нефтегазовая\nпромышленность","Пищевая промышленность\n(в т.ч. общественное питание)","Промышленность\nдрагоценных металлов и алмазов","Промышленность\nстроительных материалов","Фармацевтика","Химический комплекс \n(в т.ч. нефтехимическая\nпромышленность)","Электроэнергетика","Строительство и девелопмент","Торговля","Транспорт","Связь и телекоммуникации","Государственное управление","Банки","ЖКХ","Полиграфическая\nпромышленность","Другие отрасли и сферы экономики","Доля в суммарной выручке (%)","Всего по видам услуг (руб.)","Всего клиентов за 2025 год"]
["Технический и ценовой аудит инвестиционных проектов и активов",{"$nulls":21},{"$f":"IF(X28=0,\"\",X13/X28)","v":""},{"$f":"SUM(B13:V13)","v":0}]
["примеры клиентов"]
["Строительный консалтинг и аудит",{"$nulls":21},{"$f":"IF(X28=0,\"\",X15/X28)","v":""},{"$f":"SUM(B15:V15)","v":0}]
["примеры клиентов"]
["Предварительное проектирование (инжиниринг)",{"$nulls":21},{"$f":"IF(X28=0,\"\",X17/X28)","v":""},{"$f":"SUM(B17:V17)","v":0}]
["примеры клиентов"]
["Энергетический аудит",{"$nulls":21},{"$f":"IF(X28=0,\"\",X19/X28)","v":""},{"$f":"SUM(B19:V19)","v":0}]
["примеры клиентов"]
["Консалтинг в области промышленной безопасности",{"$nulls":21},{"$f":"IF(X28=0,\"\",X21/X28)","v":""},{"$f":"SUM(B21:V21)","v":0}]
["примеры клиентов"]
["Консалтинг в области экологии",{"$nulls":21},{"$f":"IF(X28=0,\"\",X23/X28)","v":""},{"$f":"SUM(B23:V23)","v":0}]
["примеры клиентов"]
["Прочие услуги технического аудита и консалтинга (выручка, руб.) (перечислите, пожалуйста, их в данной ячейке через запятую)",{"$nulls":21},{"$f":"IF(X28=0,\"\",X25/X28)","v":""},{"$f":"SUM(B25:V25)","v":0}]
["ИТОГО (технический аудит и консалтинг):",{"$f":"B13+B15+B17+B19+B21+B23+B25","v":0},{"$f":"C13+C15+C17+C19+C21+C23+C25","v":0},0,0,0,0,0,0,0,0,0,0,0,0,0,0,0,0,0,0,0,{"$f":"SUM(W13:W25)","v":0},{"$f":"SUM(X13:X25)","v":0}]
["Другие виды деятельности (выручка, руб.)",{"$nulls":21},{"$f":"IF(X28=0,\"\",X27/X28)","v":""},{"$f":"B27","v":0}]
["Итого по всем видам деятельности:",{"$nulls":21},{"$f":"SUM(W26,W27)","v":0},{"$f":"SUM(X26,X27)","v":0}]
["После того как эта таблица будет заполнена, пожалуйста, перейдите к заполнению следующего листа"]

{"sheet":"МСФО","index":5,"n_rows":28,"n_cols":19,"rows_kept":28,"cut":false,"hidden":false,"merged":[[0,0,0,18],[1,0,2,15],[1,18,3,18],[3,0,3,15],[4,0,5,15],[4,18,5,18],[16,0,16,18],[19,0,19,18],[6,0,7,15],[8,0,8,18],[9,0,10,0],[9,1,9,3],[9,4,9,6],[9,7,9,9],[9,10,9,12],[9,13,9,15],[9,16,10,16],[9,17,10,17],[9,18,10,18]]}
["Таблица является обязательной к заполнению для компаний, имеющих опыт предоставления услуг в области МСФО. Пояснения смотрите в инструкции (instruct.doc)."]
["1. Число компаний в группе, осуществляющих деятельность в области МСФО (с учётом головной компании).",{"$nulls":15},"На 31.12.2024","На 31.12.2025"]
[]
["1.1. Наименование компаний, осуществляющих деятельность в области МСФО (с сокращённым указанием организационно-правовой формы)."]
["2. Средняя численность специалистов, задействованных в предоставлении услуг в области МСФО и обеспечивающих выручку от этих услуг: суммарные данные головной компании и аффилированных лиц, осуществляющих деятельность в области МСФО. Специалисты — это сотрудники, выполняющие работу для заказчиков. Без учёта сотрудников сервисных служб компании (бухгалтерия, ИТ, реклама, маркетинг и т.д.).",{"$nulls":15},"За 2024 год","За 2025 год"]
[]
["3. Выручка (без учёта НДС) головной компании и аффилированных / зависимых лиц, полученная от предоставления услуг в области МСФО.",{"$nulls":15},"За 2024 год","За 2025 год"]
[{"$nulls":17},{"$f":"S19","v":0}]
["4. Для более полного представления опыта работы по направлению МСФО, пожалуйста, укажите в таблице объём выручки (без НДС), заработанной в результате предоставления МСФО-услуг за 2025 год. Приведите примеры крупнейших клиентов (2-3 клиента), которым Ваша компания / группа предоставляла МСФО-услуги за исследуемый период."]
["Виды услуг","Банки",null,null,"Страховые компании",null,null,"Лизинговые компании",null,null,"НПФ, инвестиционные компании и другие участники финансового сектора",null,null,"Предприятия промышленности и нефинансового сектора",null,null,"Всего клиентов","Доля в суммарной выручке (%)","Всего выручка (руб.)"]
[null,"Выручка (руб.)","Кол-во клиентов","Примеры клиентов","Выручка (руб.)","Кол-во клиентов","Примеры клиентов","Выручка (руб.)","Кол-во клиентов","Примеры клиентов","Выручка (руб.)","Кол-во клиентов","Примеры клиентов","Выручка (руб.)","Кол-во клиентов","Примеры клиентов"]
["Аудит*",{"$nulls":15},{"$f":"SUM(C12,F12,I12,L12,O12)","v":0},{"$f":"IF(S19=0,\"\",S12/S19)","v":""},{"$f":"SUM(B12,E12,H12,K12,N12)","v":0}]
["Трансформация отчётности*",{"$nulls":15},{"$f":"SUM(C13,F13,I13,L13,O13)","v":0},{"$f":"IF(S19=0,\"\",S13/S19)","v":""},{"$f":"SUM(B13,E13,H13,K13,N13)","v":0}]
["Консалтинговые услуги",{"$nulls":15},0,{"$f":"IF(S19=0,\"\",S14/S19)","v":""},0]
["Обучение",{"$nulls":15},0,{"$f":"IF(S19=0,\"\",S15/S19)","v":""},0]
["Оценка",{"$nulls":15},0,{"$f":"IF(S19=0,\"\",S16/S19)","v":""},0]
["Прочие услуги (пожалуйста, перечислите услуги ниже, в одной строке, через запятую):"]
["Прочие МСФО-услуги (перечислите, пожалуйста, в данной ячейке такие услуги)",{"$nulls":15},0,{"$f":"IF(S19=0,\"\",S18/S19)","v":""},{"$f":"SUM(B18,E18,H18,K18,N18)","v":0}]
["Итого:",null,{"$f":"SUM(C12:C18)","v":0},null,null,{"$f":"SUM(F12:F18)","v":0},null,null,{"$f":"SUM(I12:I18)","v":0},null,null,{"$f":"SUM(L12:L18)","v":0},null,null,{"$f":"SUM(O12:O18)","v":0},null,null,{"$f":"SUM(R12:R18)","v":0},{"$f":"SUM(S12:S18)","v":0}]
[" После того как эта таблица будет заполнена, пожалуйста, перейдите к заполнению следующего листа"]
{"$rows_empty":7}
[{"$nulls":18}," "]

{"sheet":"ESG","index":6,"n_rows":23,"n_cols":3,"rows_kept":23,"cut":false,"hidden":false,"merged":[[0,0,0,2],[12,0,12,2],[23,0,23,2],[22,0,22,2],[9,0,10,0],[5,0,6,0],[2,0,3,0],[8,0,8,2],[4,0,4,2],[21,0,21,2]]}
["Этот лист является обязательным для компаний, имеющих опыт предоставления услуг, связанных с аудитом и консалтингом в области ESG."]
["1. Наименование компании, осуществляющей деятельность в области ESG."]
["2. Средняя численность специалистов, обеспечивающих услуги ESG.","За 2024 год","За 2025 год"]
[]
[]
["3. Количество проектов, связанных с аудитом ESG-отчётности (число аудированных отчётов).","За 2024 год","За 2025 год"]
[]
["3.1. Объём выручки (без НДС), полученной от проведения аудита ESG-отчётности."]
[]
["4. Количество проектов, связанных с консалтингом в области ESG.","За 2024 год","За 2025 год"]
[]
["4.1. Объём выручки (без НДС), полученной от оказания консалтинговых услуг в области ESG."]
["В том числе:"]
["— ESG стратегии"]
["— Подготовка нефинансовой отчётности"]
["— Оценка ESG рисков"]
["— Поиск технологических инноваций для ESG трансформации"]
["— PR в сфере ESG"]
["— Исследования и сравнительный анализ конкурентов"]
["— Иное (укажите, пожалуйста, в этой строке какие именно услуги)"]
["Всего (консалтинг ESG)",{"$f":"SUM(B14:B20)","v":0},{"$f":"SUM(C14:C20)","v":0}]
[]
["5. Опрос. Какие консалтинговые услуги в области ESG пользовались в 2025 году наибольшим спросом? На Ваш взгляд, с чем это связано? Приведите, пожалуйста, ответы в ячейке ниже."]

{"sheet":"Бланк подтверждения","index":7,"n_rows":63,"n_cols":3,"rows_kept":63,"cut":false,"hidden":false,"merged":[[0,0,0,2],[2,0,2,2],[4,0,4,2],[5,0,5,2],[6,0,6,2],[11,1,11,2],[63,0,63,1],[62,0,62,1],[7,0,7,1],[9,1,9,2],[10,1,10,2],[12,1,12,2]]}
["Куда: RAEX (ООО \"РАЭКС-Аналитика\"), (495) 617-07-77, consulting@raex-a.ru, http://www.raex-rr.com"]
[]
[{"$f":"\"От:  \"&'Общие сведения'!B4&\", \"&'Общие сведения'!B5&\", \"&'Общие сведения'!B9&\", \"&'Общие сведения'!B10&\", \"&'Общие сведения'!B11","v":"От:  , , , , "}]
[]
["БЛАНК ПОДТВЕРЖДЕНИЯ "]
["Настоящим подтверждаем достоверность данных, переданных в адрес ООО \"РАЭКС-Аналитика\", в т.ч.:"]
["выручка (нетто) от консалтинговой деятельности за 2025 г.:"]
[{"$f":"'Общие сведения'!D23","v":0},null,"руб."]
[]
["Число компаний в группе",{"$f":"'Общие сведения'!D14","v":0}]
["Среднее число специалистов (консультантов)",{"$f":"'Общие сведения'!D18","v":0}]
["Среднее число специалистов в области аутсорсинга функций учёта",{"$f":"'Аутсорсинг учетных функций'!T6","v":0}]
["Среднее число специалистов в области МСФО",{"$f":"МСФО!R6","v":0}]
["Консалтинг","Доля","Выручка"]
["Стратегический консалтинг ",{"$f":"IF(C28=0,\"\",C15/C28)","v":""},{"$f":"Показатели!AF6","v":0}]
["Финансовый консалтинг (в т.ч. аутсорсинг функций учёта; услуги по МСФО, кроме аудита)",{"$f":"IF(C28=0,\"\",C16/C28)","v":""},{"$f":"Показатели!AF8","v":0}]
["Налоговый консалтинг ",{"$f":"IF(C28=0,\"\",C17/C28)","v":""},{"$f":"Показатели!AF10","v":0}]
["Управление персоналом",{"$f":"IF(C28=0,\"\",C18/C28)","v":""},{"$f":"Показатели!AF12","v":0}]
["Консалтинг в области производства услуг и товаров (в т.ч. технический аудит и консалтинг)",{"$f":"IF(C28=0,\"\",C19/C28)","v":""},{"$f":"Показатели!AF14","v":0}]
["Маркетинг и отношения с общественностью ",{"$f":"IF(C28=0,\"\",C20/C28)","v":""},{"$f":"Показатели!AF16","v":0}]
["ИТ-консалтинг (управленческое консультирование)",{"$f":"IF(C28=0,\"\",C21/C28)","v":""},{"$f":"Показатели!AF18","v":0}]
["ИТ-консалтинг (разработка и системная интеграция)",{"$f":"IF(C28=0,\"\",C22/C28)","v":""},{"$f":"Показатели!AF20","v":0}]
["Юридический консалтинг",{"$f":"IF(C28=0,\"\",C23/C28)","v":""},{"$f":"Показатели!AF22","v":0}]
["Оценочная деятельность (в т.ч. оценка в целях МСФО)",{"$f":"IF(C28=0,\"\",C24/C28)","v":""},{"$f":"Показатели!AF24","v":0}]
["Прочие консалтинговые услуги",{"$f":"IF(C28=0,\"\",C25/C28)","v":""},{"$f":"Показатели!AF26","v":0}]
["Всего (консалтинг):",{"$f":"SUM(B15:B25)","v":0},{"$f":"SUM(C15:C25)","v":0}]
["Другие виды деятельности",{"$f":"IF(C28=0,\"\",C27/C28)","v":""},{"$f":"Показатели!AF28","v":0}]
["Итого по всем видам деятельности:",{"$f":"SUM(B26:B27)","v":0},{"$f":"Показатели!AF29","v":0}]
["Услуги в области МСФО","Доля","Выручка"]
["Аудит",{"$f":"IF(C36=0,\"\",C30/C36)","v":""},{"$f":"МСФО!S12","v":0}]
["Трансформация отчётности",{"$f":"IF(C36=0,\"\",C31/C36)","v":""},{"$f":"МСФО!S13","v":0}]
["Консалтинг",{"$f":"IF(C36=0,\"\",C32/C36)","v":""},{"$f":"МСФО!S14","v":0}]
["Обучение",{"$f":"IF(C36=0,\"\",C33/C36)","v":""},{"$f":"МСФО!S15","v":0}]
["Оценка",{"$f":"IF(C36=0,\"\",C34/C36)","v":""},{"$f":"МСФО!S16","v":0}]
["Другие МСФО-услуги",{"$f":"IF(C36=0,\"\",C35/C36)","v":""},{"$f":"МСФО!S18","v":0}]
["Итого:",{"$f":"SUM(B30:B35)","v":0},{"$f":"SUM(C30:C35)","v":0}]
["Аутсорсинг учётных функций","Доля","Выручка"]
["Бухгалтерский и налоговый учёт",{"$f":"IF(C47=0,\"\",C38/C47)","v":""},{"$f":"'Аутсорсинг учетных функций'!T14","v":0}]
["Расчёт зарплат",{"$f":"IF(C47=0,\"\",C39/C47)","v":""},{"$f":"'Аутсорсинг учетных функций'!T16","v":0}]
["Подготовка бухгалтерской и налоговой отчётности (РСБУ)",{"$f":"IF(C47=0,\"\",C40/C47)","v":""},{"$f":"'Аутсорсинг учетных функций'!T18","v":0}]
["Подготовка финансовой отчётности (МСФО)",{"$f":"IF(C47=0,\"\",C41/C47)","v":""},{"$f":"'Аутсорсинг учетных функций'!T20","v":0}]
["Кадровый учёт и делопроизводство",{"$f":"IF(C47=0,\"\",C42/C47)","v":""},{"$f":"'Аутсорсинг учетных функций'!T22","v":0}]
["Юридическое сопровождение бизнеса",{"$f":"IF(C47=0,\"\",C43/C47)","v":""},{"$f":"'Аутсорсинг учетных функций'!T24","v":0}]
["ИТ-аутсорсинг (в рамках договоров аутсорсинга учётных функций клиента)",{"$f":"IF(C47=0,\"\",C44/C47)","v":""},{"$f":"'Аутсорсинг учетных функций'!T26","v":0}]
["Подбор персонала (в рамках договоров аутсорсинга кадрового учёта)",{"$f":"IF(C47=0,\"\",C45/C47)","v":""},{"$f":"'Аутсорсинг учетных функций'!T28","v":0}]
["Другие виды аутсорсинга учёта",{"$f":"IF(C47=0,\"\",C46/C47)","v":""},{"$f":"'Аутсорсинг учетных функций'!T31","v":0}]
["Итого:",{"$f":"SUM(B38:B46)","v":0},{"$f":"SUM(C38:C46)","v":0}]
["Технический аудит и консалтинг","Доля","Выручка"]
["Технический и ценовой аудит инвестиционных проектов и активов",{"$f":"IF(C58=0,\"\",C49/C58)","v":""},{"$f":"'Технический аудит и консалтинг'!X13","v":0}]
["Строительный консалтинг и аудит",{"$f":"IF(C58=0,\"\",C50/C58)","v":""},{"$f":"'Технический аудит и консалтинг'!X15","v":0}]
["Предварительное проектирование",{"$f":"IF(C58=0,\"\",C51/C58)","v":""},{"$f":"'Технический аудит и консалтинг'!X17","v":0}]
["Энергетический аудит",{"$f":"IF(C58=0,\"\",C52/C58)","v":""},{"$f":"'Технический аудит и консалтинг'!X19","v":0}]
["Консалтинг в области промышленной безопасности",{"$f":"IF(C58=0,\"\",C53/C58)","v":""},{"$f":"'Технический аудит и консалтинг'!X21","v":0}]
["Консалтинг в области экологии",{"$f":"IF(C58=0,\"\",C54/C58)","v":""},{"$f":"'Технический аудит и консалтинг'!X23","v":0}]
["Прочие услуги технического аудита и консалтинга",{"$f":"IF(C58=0,\"\",C55/C58)","v":""},{"$f":"'Технический аудит и консалтинг'!X25","v":0}]
["Итого:",{"$f":"SUM(B49:B55)","v":0},{"$f":"SUM(C49:C55)","v":0}]
["Другие виды деятельности",{"$f":"IF(C58=0,\"\",C57/C58)","v":""},{"$f":"'Технический аудит и консалтинг'!X27","v":0}]
["Итого по всем видам деятельности:",{"$f":"SUM(B56:B57)","v":0},{"$f":"C56+C57","v":0}]
[]
["Достоверность данных подтверждаю:"]
[{"$f":"'Общие сведения'!C32","v":0}]
[{"$f":"'Общие сведения'!D32","v":0}]
["(подпись)",null,"(печать)"]